fUST/lending_fUST_20250729
["ID","MTS","AMOUNT","RATE_DAILY","PERIOD"]
[375821122,1753752684961,-515.36,0.00022739,2]
[375821124,1753752684970,-460.0,0.00022739,2]
[375821126,1753752684980,-757.1,0.00022739,2]
[375821128,1753752684990,-802.5,0.00022739,2]
[375821130,1753752685000,-460.0,0.00022739,2]
[375821132,1753752685013,-818.01,0.00022739,2]
[375821134,1753752685023,-338.83197347,0.00022739,2]
[375821136,1753752685033,-500.0,0.0002274,2]
[375821138,1753752685042,-4668.0,0.00022768,2]
[375821140,1753752685052,-265.71,0.00022845,2]
[375821142,1753752685062,-459.14646595,0.00022859,2]
[375821144,1753752685071,-11665.39837505,0.000229,7]
[375821146,1753752685080,-275.77658133,0.00022923,2]
[375821148,1753752685091,-1428.45,0.00023,2]
[375821150,1753752685102,-49381.50781939,0.00023,14]
[375821152,1753752685111,-3000.0,0.00023,2]
[375821154,1753752685121,-152.780624,0.00023,7]
[375821157,1753752685135,-151.0,0.00023,7]
[375821160,1753752685155,-160.0,0.00023,3]
[375821163,1753752685173,-160.0,0.00023,3]
[375821166,1753752685191,-160.0,0.00023,3]
[375821168,1753752685209,-152.931538,0.00023,7]
[375821171,1753752685228,-151.0,0.00023,7]
[375821174,1753752685249,-151.0,0.00023,7]
[375821177,1753752685267,-151.0,0.00023,7]
[375821180,1753752685283,-151.0,0.00023,7]
[375821183,1753752685302,-151.0,0.00023,7]
[375821185,1753752685318,-151.0,0.00023,7]
[375821188,1753752685333,-151.0,0.00023,7]
[375821191,1753752685350,-151.0,0.00023,7]
[375821193,1753752685367,-151.0,0.00023,7]
[375821196,1753752685387,-160.0,0.00023,2]
[375821199,1753752685405,-151.0,0.00023,7]
[375821201,1753752685419,-840.90880427,0.00023,3]
[375821204,1753752685435,-231.34820253,0.00023,3]
[375821207,1753752685454,-216.06083566,0.00023,3]
[375821210,1753752685468,-1967.33134317,0.00023,2]
[375821212,1753752685487,-151.0,0.00023,7]
[375821214,1753752685500,-151.0,0.00023,7]
[375821217,1753752685516,-9810.06450645,0.00023,2]
[375821220,1753752685533,-20.71347975,0.00023,2]
[375822822,1753752782157,3334.456803,0.0002639,120]
[375822833,1753753017331,298.9772671,0.00026412,120]
[375822841,1753753409901,1858.0,0.00026349,120]
[375822842,1753753628337,-180.6058991,0.00018589,2]
[375822843,1753753628361,-1675.84996513,0.000189,2]
[375822844,1753753628385,-200.83437013,0.00019077,2]
[375822845,1753753628408,-300.0,0.00019175,2]
[375822846,1753753628429,-224.0,0.00019176,2]
[375822847,1753753628451,-254.0,0.00019176,2]
[375822848,1753753628472,-1200.0,0.00019176,2]
[375822849,1753753628493,-795.0,0.00019176,2]
[375822850,1753753628514,-505.54076528,0.00019177,2]
[375822851,1753753628536,-239.1582489,0.00019177,2]
[375822852,1753753628559,-873.558,0.00019177,2]
[375822853,1753753628580,-500.0,0.00019177,2]
[375822854,1753753628609,-500.0,0.00019177,2]
[375822855,1753753628630,-500.0,0.00019177,2]
[375822856,1753753628651,-500.0,0.00019177,2]
[375822857,1753753628673,-382.43108894,0.00019177,2]
[375822858,1753753632630,170.40079958,0.00026384,120]
[375822859,1753753640104,-117.56891106,0.00019177,2]
[375822860,1753753640127,-556.32839866,0.00019177,2]
[375822861,1753753640152,-366.46669028,0.00019177,2]
[375822865,1753753754475,221.360364,0.00013699,2]
[375822935,1753753831949,-846.30157266,0.00018603,2]
[375822938,1753753831959,-113.75425888,0.00018868,2]
[375822940,1753753831972,-265.22182124,0.00018868,2]
[375822942,1753753831983,-44.17470621,0.00018868,2]
[375822944,1753753831993,-2447.28350266,0.00019078,2]
[375822946,1753753832002,-505.92642163,0.00019173,2]
[375822948,1753753832012,-300.0,0.00019176,2]
[375822950,1753753832022,-300.0,0.00019176,2]
[375822952,1753753832033,-300.0,0.00019176,2]
[375822954,1753753832042,-250.0,0.00019176,2]
[375822956,1753753832052,-150.09886974,0.00019177,2]
[375822958,1753753832062,-500.0,0.00019177,2]
[375822960,1753753832072,-513.45109554,0.00019177,2]
[375822962,1753753832081,-189.8089751,0.00019177,2]
[375822964,1753753832091,-500.0,0.00019177,2]
[375822966,1753753832100,-500.0,0.00019177,2]
[375822968,1753753832109,-374.22704437,0.00019177,2]
[375822970,1753753832119,-500.0,0.00019177,2]
[375822972,1753753832129,-500.0,0.00019177,2]
[375822974,1753753832138,-500.0,0.00019177,2]
[375822976,1753753832148,-500.0,0.00019177,2]
[375822978,1753753832158,-500.0,0.00019177,2]
[375822980,1753753832168,-185.95420201,0.00019177,2]
[375822982,1753753832177,-350.97518274,0.00019177,2]
[375822984,1753753832190,-149.02481726,0.00019177,2]
[375822986,1753753832199,-500.0,0.00019177,2]
[375822988,1753753832209,-500.0,0.00019177,2]
[375822990,1753753832218,-500.0,0.00019177,2]
[375822992,1753753832228,-500.0,0.00019177,2]
[375822994,1753753832238,-500.0,0.00019177,2]
[375822996,1753753832247,-231.26360097,0.00019177,2]
[375822998,1753753832260,-500.0,0.00019177,2]
[375823000,1753753832270,-500.0,0.00019177,2]
[375823002,1753753832281,-500.0,0.00019177,2]
[375823004,1753753832291,-500.0,0.00019177,2]
[375823006,1753753832300,-500.0,0.00019177,2]
[375823008,1753753832310,-500.0,0.00019177,2]
[375823010,1753753832319,-500.0,0.00019177,2]
[375823012,1753753832329,-500.0,0.00019177,2]
[375823014,1753753832340,-500.0,0.00019177,2]
[375823015,1753753832350,-500.0,0.00019177,2]
[375823017,1753753832359,-500.0,0.00019177,2]
[375823019,1753753832368,-500.0,0.00019177,2]
[375823021,1753753832378,-550.0,0.00019177,2]
[375823023,1753753832387,-500.0,0.00019177,2]
[375823025,1753753832396,-500.0,0.00019177,2]
[375823027,1753753832406,-320.16045121,0.00019177,2]
[375823029,1753753832415,-500.0,0.00019177,2]
[375823031,1753753832426,-500.0,0.00019177,2]
[375823033,1753753832435,-500.0,0.00019177,2]
[375823035,1753753832445,-500.0,0.00019177,2]
[375823037,1753753832454,-500.0,0.00019177,2]
[375823039,1753753832464,-500.0,0.00019177,2]
[375823041,1753753832474,-500.0,0.00019177,2]
[375823043,1753753832483,-500.0,0.00019177,2]
[375823045,1753753832492,-290.74263897,0.00019177,2]
[375823047,1753753832501,-500.0,0.00019177,2]
[375823049,1753753832510,-500.0,0.00019177,2]
[375823051,1753753832520,-500.0,0.00019177,2]
[375823053,1753753832531,-500.0,0.00019177,2]
[375823055,1753753832540,-430.0,0.00019177,2]
[375823057,1753753832549,-500.0,0.00019177,2]
[375823059,1753753832559,-500.0,0.00019177,2]
[375823060,1753753832568,-500.0,0.00019177,2]
[375823061,1753753832578,-500.0,0.00019177,2]
[375823063,1753753832588,-500.0,0.00019177,2]
[375823065,1753753832598,-500.0,0.00019177,2]
[375823066,1753753832607,-500.0,0.00019177,2]
[375823069,1753753832618,-500.0,0.00019177,2]
[375823070,1753753832628,-500.0,0.00019177,2]
[375823073,1753753832638,-460.0,0.00019178,2]
[375823074,1753753832648,-460.0,0.00019178,2]
[375823076,1753753832657,-460.0,0.00019178,2]
[375823078,1753753832667,-460.7902316,0.00019178,2]
[375823080,1753753832676,-460.0,0.00019178,2]
[375823081,1753753832686,-460.0,0.00019178,2]
[375823082,1753753832695,-460.0,0.00019178,2]
[375823083,1753753832705,-460.0,0.00019178,2]
[375823085,1753753832714,-460.0,0.00019178,2]
[375823087,1753753832723,-460.0,0.00019178,2]
[375823088,1753753832733,-460.0,0.00019178,2]
[375823090,1753753832742,-461.59803318,0.00019178,2]
[375823092,1753753832752,-460.0,0.00019178,2]
[375823094,1753753832763,-460.0,0.00019178,2]
[375823096,1753753832772,-176.52208064,0.00019178,2]
[375823098,1753753832784,-461.38706474,0.00019178,2]
[375823100,1753753832794,-460.0,0.00019178,2]
[375823102,1753753832803,-461.2858529,0.00019178,2]
[375823104,1753753832814,-460.0,0.00019178,2]
[375823107,1753753832825,-457.99836907,0.00019178,2]
[375823108,1753753832834,-460.0,0.00019178,2]
[375823110,1753753832843,-460.0,0.00019178,2]
[375823112,1753753832853,-460.0,0.00019178,2]
[375823114,1753753832863,-460.0,0.00019178,2]
[375823116,1753753832872,-469.54153238,0.00019178,2]
[375823118,1753753832881,-460.0,0.00019178,2]
[375823120,1753753832891,-460.0,0.00019178,2]
[375823139,1753753833074,-461.07920188,0.00019178,2]
[375823141,1753753833085,-460.0,0.00019178,2]
[375823143,1753753833095,-460.0,0.00019178,2]
[375823145,1753753833105,-460.0,0.00019178,2]
[375823147,1753753833116,-460.0,0.00019178,2]
[375823149,1753753833125,-460.0,0.00019178,2]
[375823151,1753753833135,-460.7409497,0.00019178,2]
[375823153,1753753833145,-460.0,0.00019178,2]
[375823154,1753753833155,-460.0,0.00019178,2]
[375823155,1753753833164,-461.43725494,0.00019178,2]
[375823156,1753753833175,-460.0,0.00019178,2]
[375823158,1753753833185,-392.81862824,0.00019178,2]
[375823160,1753753833194,-460.0,0.00019178,2]
[375823162,1753753833204,-460.0,0.00019178,2]
[375823164,1753753833215,-460.0,0.00019178,2]
[375823166,1753753833225,-460.0,0.00019178,2]
[375823168,1753753833236,-460.0,0.00019178,2]
[375823170,1753753833246,-460.0,0.00019178,2]
[375823172,1753753833260,-460.0,0.00019178,2]
[375823174,1753753833270,-461.65912816,0.00019178,2]
[375823176,1753753833282,-460.0,0.00019178,2]
[375823178,1753753833291,-460.0,0.00019178,2]
[375823180,1753753833302,-460.0,0.00019178,2]
[375823182,1753753833311,-460.0,0.00019178,2]
[375823184,1753753833321,-460.0,0.00019178,2]
[375823186,1753753833332,-460.0,0.00019178,2]
[375823188,1753753833343,-460.88622588,0.00019178,2]
[375823190,1753753833353,-460.0,0.00019178,2]
[375823192,1753753833363,-460.0,0.00019178,2]
[375823194,1753753833373,-460.0,0.00019178,2]
[375823196,1753753833383,-460.0,0.00019178,2]
[375823198,1753753833393,-460.0,0.00019178,2]
[375823200,1753753833404,-460.0,0.00019178,2]
[375823201,1753753833414,-460.50614718,0.00019178,2]
[375823203,1753753833424,-460.0,0.00019178,2]
[375823205,1753753833434,-460.0,0.00019178,2]
[375823207,1753753833443,-461.2835664,0.00019178,2]
[375823209,1753753833453,-60.45593087,0.00019178,2]
[375823224,1753753833622,-399.54406913,0.00019178,2]
[375823226,1753753833633,-460.86228261,0.00019178,2]
[375823228,1753753833643,-460.0,0.00019178,2]
[375823230,1753753833652,-460.0,0.00019178,2]
[375823232,1753753833662,-460.0,0.00019178,2]
[375823234,1753753833672,-463.35131577,0.00019178,2]
[375823236,1753753833683,-460.67747534,0.00019178,2]
[375823238,1753753833693,-462.61677565,0.00019178,2]
[375823240,1753753833703,-460.0,0.00019178,2]
[375823242,1753753833712,-460.0,0.00019178,2]
[375823244,1753753833722,-460.0,0.00019178,2]
[375823246,1753753833732,-460.0,0.00019178,2]
[375823247,1753753833751,-460.0,0.00019178,2]
[375823250,1753753833764,-460.0,0.00019178,2]
[375823252,1753753833774,-460.0,0.00019178,2]
[375823253,1753753833786,-461.92124882,0.00019178,2]
[375823255,1753753833796,-460.0,0.00019178,2]
[375823257,1753753833806,-460.0,0.00019178,2]
[375823259,1753753833816,-460.0,0.00019178,2]
[375823261,1753753833826,-460.0,0.00019178,2]
[375823263,1753753833835,-460.0,0.00019178,2]
[375823265,1753753833845,-460.62650853,0.00019178,2]
[375823267,1753753833855,-460.0,0.00019178,2]
[375823269,1753753833865,-460.0,0.00019178,2]
[375823271,1753753833875,-460.0,0.00019178,2]
[375823273,1753753833884,-460.0,0.00019178,2]
[375823275,1753753833894,-460.0,0.00019178,2]
[375823277,1753753833904,-549.41518135,0.00019178,2]
[375823279,1753753833914,-460.0,0.00019178,2]
[375823280,1753753833923,-235.6942636,0.00019178,2]
[375823282,1753753833934,-460.0,0.00019178,2]
[375823284,1753753833944,-461.52354428,0.00019178,2]
[375823286,1753753833953,-460.0,0.00019178,2]
[375823288,1753753833964,-460.0,0.00019178,2]
[375823290,1753753833974,-460.0,0.00019178,2]
[375823292,1753753833983,-460.0,0.00019178,2]
[375823293,1753753833994,-460.0,0.00019178,2]
[375823294,1753753834003,-461.57540572,0.00019178,2]
[375823295,1753753834013,-460.0,0.00019178,2]
[375823296,1753753834022,-460.0,0.00019178,2]
[375823297,1753753834033,-460.0,0.00019178,2]
[375823298,1753753834043,-460.0,0.00019178,2]
[375823299,1753753834053,-460.0,0.00019178,2]
[375823300,1753753834063,-282.38392675,0.00019178,2]
[375823301,1753753834073,-460.0,0.00019178,2]
[375823302,1753753834082,-501.86720181,0.00019178,2]
[375823303,1753753834092,-461.33435787,0.00019178,2]
[375823304,1753753834102,-460.0,0.00019178,2]
[375823305,1753753834111,-1337.37,0.00019178,2]
[375823306,1753753834121,-460.0,0.00019178,2]
[375823307,1753753834131,-460.98782507,0.00019178,2]
[375823308,1753753834141,-460.0,0.00019178,2]
[375823309,1753753834150,-460.0,0.00019178,2]
[375823310,1753753834160,-460.0,0.00019178,2]
[375823311,1753753834169,-460.0,0.00019178,2]
[375823312,1753753834179,-460.0,0.00019178,2]
[375823313,1753753834188,-157.97740029,0.00019178,2]
[375823314,1753753834197,-460.0,0.00019178,2]
[375823315,1753753834207,-460.0,0.00019178,2]
[375823316,1753753834217,-460.0,0.00019178,2]
[375823317,1753753834227,-460.0,0.00019178,2]
[375823318,1753753834237,-460.0,0.00019178,2]
[375823319,1753753834247,-460.0,0.00019178,2]
[375823320,1753753834259,-460.0,0.00019178,2]
[375823321,1753753834268,-460.0,0.00019178,2]
[375823322,1753753834279,-460.0,0.00019178,2]
[375823323,1753753834289,-460.0,0.00019178,2]
[375823325,1753753834299,-460.86425741,0.00019178,2]
[375823327,1753753834310,-460.0,0.00019178,2]
[375823329,1753753834320,-460.0,0.00019178,2]
[375823331,1753753834331,-572.81510367,0.00019178,2]
[375823333,1753753834342,-460.0,0.00019178,2]
[375823335,1753753834353,-460.0,0.00019178,2]
[375823337,1753753834363,-460.0,0.00019178,2]
[375823339,1753753834373,-460.0,0.00019178,2]
[375823341,1753753834384,-460.0,0.00019178,2]
[375823343,1753753834393,-442.29894262,0.00019178,2]
[375823345,1753753834403,-460.0,0.00019178,2]
[375823347,1753753834412,-460.0,0.00019178,2]
[375823349,1753753834423,-460.0,0.00019178,2]
[375823351,1753753834432,-460.0,0.00019178,2]
[375823353,1753753834442,-460.0,0.00019178,2]
[375823355,1753753834452,-460.0,0.00019178,2]
[375823357,1753753834461,-460.0,0.00019178,2]
[375823359,1753753834471,-460.0,0.00019178,2]
[375823361,1753753834480,-460.0,0.00019178,2]
[375823363,1753753834489,-460.0,0.00019178,2]
[375823365,1753753834500,-633.03,0.00019178,2]
[375823367,1753753834509,-460.0,0.00019178,2]
[375823368,1753753834519,-460.0,0.00019178,2]
[375823370,1753753834529,-460.0,0.00019178,2]
[375823372,1753753834539,-460.0,0.00019178,2]
[375823374,1753753834548,-462.51168229,0.00019178,2]
[375823376,1753753834558,-460.0,0.00019178,2]
[375823378,1753753834568,-529.48147057,0.00019178,2]
[375823380,1753753834577,-460.0,0.00019178,2]
[375823382,1753753834588,-460.0,0.00019178,2]
[375823384,1753753834597,-460.0,0.00019178,2]
[375823386,1753753834607,-461.65242433,0.00019178,2]
[375823388,1753753834617,-460.0,0.00019178,2]
[375823390,1753753834626,-460.60321723,0.00019178,2]
[375823392,1753753834635,-460.0,0.00019178,2]
[375823394,1753753834645,-461.16255967,0.00019178,2]
[375823396,1753753834655,-462.11077979,0.00019178,2]
[375823398,1753753834666,-460.0,0.00019178,2]
[375823399,1753753834676,-460.0,0.00019178,2]
[375823401,1753753834686,-460.0,0.00019178,2]
[375823403,1753753834696,-460.0,0.00019178,2]
[375823405,1753753834706,-460.0,0.00019178,2]
[375823406,1753753834715,-460.0,0.00019178,2]
[375823408,1753753834726,-460.0,0.00019178,2]
[375823410,1753753834736,-460.0,0.00019178,2]
[375823412,1753753834746,-460.79803356,0.00019178,2]
[375823414,1753753834756,-460.0,0.00019178,2]
[375823416,1753753834765,-460.0,0.00019178,2]
[375823418,1753753834775,-460.0,0.00019178,2]
[375823420,1753753834787,-460.0,0.00019178,2]
[375823422,1753753834798,-460.0,0.00019178,2]
[375823424,1753753834807,-473.70271348,0.00019178,2]
[375823426,1753753834817,-464.35925992,0.00019178,2]
[375823428,1753753834827,-461.37510806,0.00019178,2]
[375823430,1753753834837,-460.0,0.00019178,2]
[375823432,1753753834847,-460.0,0.00019178,2]
[375823434,1753753834860,-460.0,0.00019178,2]
[375823436,1753753834869,-460.98608845,0.00019178,2]
[375823438,1753753834879,-460.0,0.00019178,2]
[375823440,1753753834889,-460.0,0.00019178,2]
[375823442,1753753834899,-460.0,0.00019178,2]
[375823444,1753753834909,-460.0,0.00019178,2]
[375823446,1753753834919,-460.0,0.00019178,2]
[375823448,1753753834929,-460.0,0.00019178,2]
[375823450,1753753834939,-460.0,0.00019178,2]
[375823452,1753753834948,-460.0,0.00019178,2]
[375823454,1753753834958,-460.0,0.00019178,2]
[375823456,1753753834967,-460.0,0.00019178,2]
[375823457,1753753834976,-460.0,0.00019178,2]
[375823459,1753753834986,-460.0,0.00019178,2]
[375823461,1753753834996,-460.0,0.00019178,2]
[375823463,1753753835005,-460.0,0.00019178,2]
[375823465,1753753835015,-460.69941074,0.00019178,2]
[375823467,1753753835024,-460.0,0.00019178,2]
[375823468,1753753835036,-460.0,0.00019178,2]
[375823469,1753753835046,-460.0,0.00019178,2]
[375823471,1753753835056,-460.0,0.00019178,2]
[375823473,1753753835065,-460.0,0.00019178,2]
[375823475,1753753835075,-242.84730626,0.00019178,2]
[375823477,1753753835084,-460.0,0.00019178,2]
[375823479,1753753835094,-460.04179001,0.00019178,2]
[375823481,1753753835104,-461.00144036,0.00019178,2]
[375823483,1753753835114,-460.0,0.00019178,2]
[375823485,1753753835125,-460.0,0.00019178,2]
[375823487,1753753835135,-460.0,0.00019178,2]
[375823489,1753753835144,-460.0,0.00019178,2]
[375823491,1753753835155,-460.0,0.00019178,2]
[375823492,1753753835164,-460.0,0.00019178,2]
[375823494,1753753835174,-460.0,0.00019178,2]
[375823496,1753753835184,-313.5017983,0.00019178,2]
[375823498,1753753835194,-460.0,0.00019178,2]
[375823500,1753753835204,-462.70076466,0.00019178,2]
[375823502,1753753835214,-460.0,0.00019178,2]
[375823504,1753753835224,-460.0,0.00019178,2]
[375823506,1753753835234,-460.0,0.00019178,2]
[375823508,1753753835243,-460.0,0.00019178,2]
[375823510,1753753835254,-460.0,0.00019178,2]
[375823512,1753753835267,-500.91572453,0.00019178,2]
[375823514,1753753835276,-500.0,0.00019178,2]
[375823516,1753753835288,-500.0,0.00019178,2]
[375823517,1753753835298,-500.0,0.00019178,2]
[375823519,1753753835308,-500.0,0.00019178,2]
[375823521,1753753835318,-500.0,0.00019178,2]
[375823523,1753753835327,-500.0,0.00019178,2]
[375823525,1753753835338,-500.0,0.00019178,2]
[375823527,1753753835349,-500.0,0.00019178,2]
[375823529,1753753835359,-460.0,0.00019178,2]
[375823531,1753753835369,-500.0,0.00019178,2]
[375823533,1753753835378,-500.0,0.00019178,2]
[375823535,1753753835388,-461.19251729,0.00019178,2]
[375823537,1753753835398,-183.37062321,0.00019178,2]
[375823539,1753753835407,-460.0,0.00019178,2]
[375823541,1753753835417,-213.46078065,0.00019178,2]
[375823542,1753753835426,-460.0,0.00019178,2]
[375823544,1753753835436,-461.66886557,0.00019178,2]
[375823546,1753753835446,-460.0,0.00019178,2]
[375823548,1753753835455,-460.0,0.00019178,2]
[375823550,1753753835465,-325.58543871,0.00019178,2]
[375823552,1753753835475,-460.5155069,0.00019178,2]
[375823554,1753753835484,-460.0,0.00019178,2]
[375823556,1753753835495,-650.21,0.00019178,2]
[375823558,1753753835504,-460.0,0.00019178,2]
[375823560,1753753835513,-460.0,0.00019178,2]
[375823562,1753753835523,-460.0,0.00019178,2]
[375823564,1753753835533,-460.0,0.00019178,2]
[375823565,1753753835543,-460.0,0.00019178,2]
[375823567,1753753835552,-460.0,0.00019178,2]
[375823569,1753753835562,-460.0,0.00019178,2]
[375823571,1753753835571,-460.0,0.00019178,2]
[375823573,1753753835581,-464.01821222,0.00019178,2]
[375823575,1753753835590,-460.0,0.00019178,2]
[375823577,1753753835600,-460.0,0.00019178,2]
[375823579,1753753835609,-461.784465,0.00019178,2]
[375823581,1753753835618,-460.0,0.00019178,2]
[375823583,1753753835628,-460.0,0.00019178,2]
[375823585,1753753835637,-460.0,0.00019178,2]
[375823587,1753753835647,-460.0,0.00019178,2]
[375823589,1753753835656,-500.99877215,0.00019178,2]
[375823591,1753753835666,-460.91141399,0.00019178,2]
[375823593,1753753835686,-460.0,0.00019178,2]
[375823595,1753753835697,-460.0,0.00019178,2]
[375823597,1753753835706,-463.89122892,0.00019178,2]
[375823599,1753753835716,-462.44576235,0.00019178,2]
[375823600,1753753835725,-292.42797948,0.00019178,2]
[375823602,1753753835735,-460.0,0.00019178,2]
[375823604,1753753835744,-462.00290646,0.00019178,2]
[375823606,1753753835754,-460.0,0.00019178,2]
[375823608,1753753835764,-461.00421286,0.00019178,2]
[375823610,1753753835773,-461.25130112,0.00019178,2]
[375823612,1753753835783,-460.0,0.00019178,2]
[375823614,1753753835792,-460.0,0.00019178,2]
[375823616,1753753835802,-462.23404981,0.00019178,2]
[375823618,1753753835811,-467.15117857,0.00019178,2]
[375823620,1753753835821,-460.0,0.00019178,2]
[375823622,1753753835834,-460.0,0.00019178,2]
[375823624,1753753835844,-300.04114247,0.00019178,2]
[375823626,1753753835853,-460.0,0.00019178,2]
[375823628,1753753835863,-460.80116652,0.00019178,2]
[375823630,1753753835872,-460.0,0.00019178,2]
[375823632,1753753835882,-460.0,0.00019178,2]
[375823634,1753753835891,-460.0,0.00019178,2]
[375823636,1753753835901,-465.26598719,0.00019178,2]
[375823638,1753753835911,-460.0,0.00019178,2]
[375823639,1753753835921,-460.0,0.00019178,2]
[375823641,1753753835931,-460.0,0.00019178,2]
[375823643,1753753835941,-460.60703635,0.00019178,2]
[375823645,1753753835950,-460.0,0.00019178,2]
[375823646,1753753835960,-460.0,0.00019178,2]
[375823648,1753753835969,-544.16200662,0.00019178,2]
[375823650,1753753835980,-461.94533193,0.00019178,2]
[375823652,1753753835989,-460.0,0.00019178,2]
[375823654,1753753835999,-467.09061256,0.00019178,2]
[375823656,1753753836010,-460.0,0.00019178,2]
[375823657,1753753836020,-487.4813901,0.00019178,2]
[375823659,1753753836029,-463.07850958,0.00019178,2]
[375823661,1753753836039,-460.0,0.00019178,2]
[375823663,1753753836048,-460.0,0.00019178,2]
[375823665,1753753836058,-460.0,0.00019178,2]
[375823667,1753753836068,-460.0,0.00019178,2]
[375823669,1753753836077,-460.0,0.00019178,2]
[375823671,1753753836087,-460.0,0.00019178,2]
[375823673,1753753836096,-460.0,0.00019178,2]
[375823674,1753753836106,-460.0,0.00019178,2]
[375823676,1753753836116,-460.0,0.00019178,2]
[375823678,1753753836126,-609.61,0.00019178,2]
[375823680,1753753836136,-460.0,0.00019178,2]
[375823682,1753753836146,-460.0,0.00019178,2]
[375823684,1753753836156,-500.0,0.00019178,2]
[375823686,1753753836165,-462.06087685,0.00019178,2]
[375823688,1753753836175,-500.0,0.00019178,2]
[375823690,1753753836184,-500.0,0.00019178,2]
[375823692,1753753836193,-500.0,0.00019178,2]
[375823694,1753753836202,-500.0,0.00019178,2]
[375823696,1753753836212,-518.06038284,0.00019178,2]
[375823698,1753753836222,-460.0,0.00019178,2]
[375823699,1753753836231,-461.28032018,0.00019178,2]
[375823701,1753753836241,-464.85118337,0.00019178,2]
[375823703,1753753836250,-461.37430407,0.00019178,2]
[375823705,1753753836265,-460.0,0.00019178,2]
[375823708,1753753836278,-461.14869287,0.00019178,2]
[375823710,1753753836290,-460.0,0.00019178,2]
[375823711,1753753836301,-460.0,0.00019178,2]
[375823713,1753753836311,-460.0,0.00019178,2]
[375823715,1753753836320,-460.0,0.00019178,2]
[375823717,1753753836330,-460.0,0.00019178,2]
[375823719,1753753836341,-460.0,0.00019178,2]
[375823721,1753753836351,-460.0,0.00019178,2]
[375823723,1753753836362,-460.0,0.00019178,2]
[375823725,1753753836372,-460.0,0.00019178,2]
[375823727,1753753836381,-460.0,0.00019178,2]
[375823729,1753753836391,-460.54739277,0.00019178,2]
[375823731,1753753836400,-549.13932803,0.00019178,2]
[375823732,1753753836409,-460.0,0.00019178,2]
[375823734,1753753836419,-460.0,0.00019178,2]
[375823736,1753753836428,-460.0,0.00019178,2]
[375823738,1753753836438,-460.64960989,0.00019178,2]
[375823740,1753753836447,-460.0,0.00019178,2]
[375823742,1753753836457,-460.0,0.00019178,2]
[375823744,1753753836466,-460.0,0.00019178,2]
[375823746,1753753836475,-503.0858207,0.00019178,2]
[375823747,1753753836484,-460.0,0.00019178,2]
[375823749,1753753836493,-5391.93,0.00019178,2]
[375823751,1753753836503,-460.0,0.00019178,2]
[375823753,1753753836512,-460.0,0.00019178,2]
[375823755,1753753836521,-460.0,0.00019178,2]
[375823757,1753753836532,-460.0,0.00019178,2]
[375823759,1753753836541,-460.79844579,0.00019178,2]
[375823760,1753753836550,-460.0,0.00019178,2]
[375823762,1753753836560,-460.0,0.00019178,2]
[375823764,1753753836569,-460.0,0.00019178,2]
[375823766,1753753836579,-460.0,0.00019178,2]
[375823768,1753753836589,-463.27424296,0.00019178,2]
[375823770,1753753836598,-460.0,0.00019178,2]